bitfinex/quotes_SOLUSD_20250611
["timestamp","ask_amount","ask_price","bid_price","bid_amount"]
[1749618343175,0.14216157,164.7,164.59,18.64964886]
[1749618343673,18.79181043,164.7,164.59,18.64964886]
[1749618344206,33.6001,164.71,164.59,29.00113822]
[1749618344491,7.6001,164.71,164.63,10.35148936]
[1749618346474,7.6001,164.71,164.65,26.0]
[1749618346981,0.14216157,164.7,164.64,26.0]
[1749618347473,0.14216157,164.7,164.58,1.5282]
[1749618347678,26.14216157,164.7,164.62,26.0]
[1749618349794,5.32,164.69,164.62,26.0]
[1749618350600,26.0,164.66,164.59,18.64964886]
[1749618350782,26.0,164.66,164.58,30.52933822]
[1749618350973,26.0,164.66,164.57,12.46412927]
[1749618351175,26.0,164.66,164.55,29.29722917]
[1749618351392,26.0,164.66,164.57,18.64964886]
[1749618351902,7.7992,164.65,164.54,4.79217444]
[1749618352098,0.14216157,164.61,164.51,18.6736146]
[1749618352307,0.14216157,164.61,164.53,18.42461583]
[1749618352595,0.14216157,164.61,164.51,23.62313969]
[1749618352899,26.14216157,164.61,164.5,19.69082061]
[1749618353192,26.14216157,164.61,164.51,18.6736146]
[1749618353193,26.0,164.57,164.51,18.6736146]
[1749618354075,5.32,164.61,164.52,35.69626118]
[1749618354278,5.32,164.61,164.55,18.94573981]
[1749618357010,5.32,164.61,164.54,18.38337277]
[1749618361603,5.32,164.61,164.55,18.64964886]
[1749618361807,31.36,164.64,164.55,18.64964886]
[1749618363110,31.36,164.64,164.55,20.24474886]
[1749618364106,31.36,164.64,164.55,18.64964886]
[1749618364301,0.14216157,164.63,164.54,55.28337277]
[1749618364512,0.14216157,164.63,164.54,24.9]
[1749618365600,0.14216157,164.63,164.53,18.64964886]
[1749618366299,0.14216157,164.63,164.55,26.0]
[1749618366629,5.36,164.64,164.56,18.64964886]
[1749618368108,5.36,164.64,164.59,26.0]
[1749618368817,5.36,164.64,164.6,26.0]
[1749618371005,8.2584,164.69,164.6,26.0]
[1749618371006,8.2584,164.69,164.61,18.64964886]
[1749618372514,5.36,164.7,164.61,29.00113822]
[1749618372769,5.36,164.7,164.64,26.0]
[1749618374118,5.36,164.7,164.66,26.0]
[1749618376625,5.36,164.7,164.65,35.25148936]
[1749618376626,5.36,164.7,164.68,26.0]
[1749618378331,5.36,164.7,164.65,55.80114055]
[1749618378530,5.36,164.7,164.64,120.51008048]
[1749618378736,5.36,164.7,164.64,89.9]
[1749618381718,6.9606,164.7,164.61,18.64964886]
[1749618381925,0.14216157,164.69,164.61,26.0]
[1749618383721,0.14216157,164.69,164.61,56.39958387]
[1749618385143,0.14216157,164.69,164.61,26.0]
[1749618393850,26.0,164.67,164.59,18.64964886]
[1749618396135,26.0,164.66,164.59,18.64964886]
[1749618399565,26.0,164.66,164.58,114.72]
[1749618399741,0.14216157,164.65,164.58,89.9]
[1749618399953,0.14216157,164.65,164.56,26.4406]
[1749618400959,0.14216157,164.65,164.56,1.6206]
[1749618401939,0.14216157,164.65,164.58,5.65449969]
[1749618402652,0.14216157,164.65,164.59,5.65449969]
[1749618403035,26.0,164.62,164.58,5.65449969]
[1749618403240,26.0,164.62,164.56,5.65449969]
[1749618404047,26.0,164.62,164.53,1.5287]
[1749618404048,26.0,164.62,164.55,5.65449969]
[1749618405567,26.0,164.62,164.54,5.65449969]
[1749618405955,26.0,164.62,164.55,30.94573981]
[1749618405956,0.14216157,164.61,164.55,30.94573981]
[1749618406345,0.14216157,164.61,164.54,30.38337277]
[1749618406950,0.14216157,164.61,164.53,36.07911552]
[1749618407755,0.14216157,164.61,164.53,5.65449969]
[1749618408051,0.14216157,164.61,164.52,36.34962265]
[1749618408464,0.14216157,164.61,164.52,5.65449969]
[1749618410162,26.0,164.57,164.52,5.65449969]
[1749618410763,26.0,164.57,164.51,36.32811429]
[1749618411151,26.0,164.57,164.52,5.65449969]
[1749618411574,26.0,164.57,164.51,36.32811429]
[1749618412974,26.0,164.57,164.53,5.65449969]
[1749618413152,22.61664951,164.57,164.52,65.35076087]
[1749618415071,22.61664951,164.57,164.52,59.69626118]
[1749618415272,22.61664951,164.57,164.52,49.34477182]
[1749618416273,22.61664951,164.57,164.52,59.69626118]
[1749618416464,5.36,164.6,164.52,59.69626118]
[1749618416465,5.36,164.6,164.54,18.64964886]
[1749618416661,5.36,164.6,164.55,10.35148936]
[1749618416860,31.36,164.6,164.54,29.00113822]
[1749618417266,26.0,164.57,164.54,18.64964886]
[1749618417464,26.0,164.57,164.54,29.00113822]
[1749618418065,5.36,164.6,164.54,118.90113822]
[1749618418273,5.36,164.6,164.54,149.28451099]
[1749618418452,5.36,164.6,164.54,59.38451099]
[1749618418650,5.36,164.6,164.54,49.03302163]
[1749618420790,5.36,164.6,164.53,24.8]
[1749618421757,5.36,164.6,164.52,41.04661232]
[1749618421964,5.36,164.6,164.52,55.47512296]
[1749618422169,5.36,164.6,164.52,65.82661232]
[1749618423082,5.36,164.6,164.52,71.48111201]
[1749618423594,5.36,164.6,164.53,46.43060488]
[1749618424064,5.36,164.6,164.53,36.07911552]
[1749618424266,5.36,164.6,164.52,71.48111201]
[1749618424684,5.36,164.6,164.53,16.00598905]
[1749618425063,5.36,164.6,164.54,5.65449969]
[1749618425878,5.36,164.6,164.54,95.55449969]
[1749618426984,26.0,164.57,164.54,95.55449969]
[1749618427187,26.0,164.57,164.53,5.65449969]
[1749618427381,26.0,164.57,164.52,126.24962265]
[1749618427586,26.0,164.57,164.52,5.65449969]
[1749618428683,26.0,164.57,164.5,32.69082061]
[1749618428684,26.0,164.57,164.51,5.65449969]
[1749618428889,26.0,164.55,164.51,5.65449969]
[1749618429074,26.0,164.55,164.5,8.15143438]
[1749618429596,26.0,164.55,164.51,5.65449969]
[1749618430475,26.0,164.55,164.5,8.15143438]
[1749618431275,26.0,164.55,164.5,2.49693469]
[1749618431480,1.79696157,164.52,164.5,2.49693469]
[1749618431672,26.14216157,164.51,164.5,2.49693469]
[1749618431882,31.46216157,164.51,164.5,2.49693469]
[1749618433704,31.96216157,164.51,164.5,2.49693469]
[1749618434174,31.82,164.51,164.5,2.49693469]
[1749618434375,31.96216157,164.51,164.5,7.02444365]
[1749618435071,31.96216157,164.51,164.5,2.49693469]
[1749618435676,31.96216157,164.51,164.5,7.02460826]
[1749618435891,31.96216157,164.51,164.5,2.49693469]
[1749618436196,31.96216157,164.51,164.5,7.02449236]
[1749618436697,31.96216157,164.51,164.5,2.49693469]
[1749618437386,31.96216157,164.51,164.5,7.02477611]
[1749618438289,31.96216157,164.51,164.5,2.49693469]
[1749618438490,31.96216157,164.51,164.5,7.0247556]
[1749618438682,31.96216157,164.51,164.5,7.02481612]
[1749618438884,31.96216157,164.51,164.5,2.49693469]
[1749618439522,31.96216157,164.51,164.5,7.02479555]
[1749618439881,31.96216157,164.51,164.5,7.02481613]
[1749618440188,31.96216157,164.51,164.5,2.49693469]
[1749618440393,31.96216157,164.51,164.5,7.02479555]
[1749618440789,31.96216157,164.51,164.5,2.49693469]
[1749618441903,31.96216157,164.51,164.5,7.02481613]
[1749618442109,31.96216157,164.51,164.5,7.02489845]
[1749618442406,31.96216157,164.51,164.5,2.49693469]
[1749618442802,31.96216157,164.51,164.5,7.03129514]
[1749618443197,31.96216157,164.51,164.5,2.49693469]
[1749618443503,31.96216157,164.51,164.5,7.03131575]
[1749618443803,31.96216157,164.51,164.5,2.49693469]
[1749618443980,31.96216157,164.51,164.5,7.03131813]
[1749618444181,31.96216157,164.51,164.5,2.49693469]
[1749618444384,31.96216157,164.51,164.5,7.03139178]
[1749618444684,31.96216157,164.51,164.5,2.49693469]
[1749618445104,31.96216157,164.51,164.5,7.03139178]
[1749618445309,31.96216157,164.51,164.5,2.49693469]
[1749618445494,31.96216157,164.51,164.5,7.03140852]
[1749618445877,31.96216157,164.51,164.5,2.49693469]
[1749618446298,31.96216157,164.51,164.5,7.03915646]
[1749618446478,31.96216157,164.51,164.5,7.03905152]
[1749618446691,31.82,164.51,164.5,7.03905152]
[1749618446896,31.82,164.51,164.5,7.03888038]
[1749618447098,31.82,164.51,164.5,2.49693469]
[1749618447305,31.96216157,164.51,164.5,2.49693469]
[1749618448705,8.0883,164.63,164.5,31.64023448]
[1749618448898,8.0883,164.63,164.53,10.35148936]
[1749618449095,8.0883,164.63,164.54,18.64964886]
[1749618449300,6.4717,164.63,164.55,4.5153289]
[1749618449482,26.0,164.6,164.54,18.64964886]
[1749618449682,13.2649,164.67,164.55,14.86495923]
[1749618449888,13.2649,164.67,164.56,6.08576987]
[1749618450117,18.79181043,164.66,164.57,4.51302961]
[1749618450291,18.79181043,164.66,164.53,6.0521]
[1749618450484,0.14216157,164.65,164.53,6.0521]
[1749618450689,0.14216157,164.62,164.53,6.0521]
[1749618450996,0.14216157,164.58,164.54,4.5137204]
[1749618451306,0.14216157,164.58,164.55,4.51440557]
[1749618451504,0.14216157,164.58,164.56,4.51440774]
[1749618451710,0.14216157,164.58,164.51,1.558]
[1749618452010,0.14216157,164.58,164.52,4.51460376]
[1749618452206,0.14216157,164.58,164.53,4.51461926]
[1749618452394,0.14216157,164.58,164.51,1.558]
[1749618452594,0.14216157,164.58,164.52,4.50956404]
[1749618452796,0.14216157,164.58,164.53,4.50956622]
[1749618452996,0.14216157,164.58,164.54,4.50956622]
[1749618453200,0.14216157,164.58,164.51,1.558]
[1749618453417,0.14216157,164.58,164.52,4.50978607]
[1749618453720,0.14216157,164.58,164.53,4.50978547]
[1749618454014,0.14216157,164.58,164.54,4.51519849]
[1749618454317,0.14216157,164.58,164.51,1.558]
[1749618454495,0.14216157,164.58,164.52,4.51519789]
[1749618454694,0.14216157,164.58,164.51,1.558]
[1749618454896,0.14216157,164.58,164.52,4.51520067]
[1749618455199,0.14216157,164.58,164.53,4.51526254]
[1749618455411,0.14216157,164.58,164.54,4.51526254]
[1749618455614,0.14216157,164.58,164.5,2.49693469]
[1749618455803,0.14216157,164.58,164.51,4.51036527]
[1749618455996,0.14216157,164.58,164.52,4.51036865]
[1749618456195,0.14216157,164.58,164.5,2.49693469]
[1749618456413,0.14216157,164.56,164.51,4.51039032]
[1749618456620,0.14216157,164.56,164.5,2.49693469]
[1749618456915,0.14216157,164.56,164.51,4.51058019]
[1749618457214,0.14216157,164.56,164.5,2.49693469]
[1749618457420,26.14216157,164.56,164.51,4.51085778]
[1749618457614,26.14216157,164.56,164.5,2.49693469]
[1749618457918,0.14216157,164.56,164.5,2.49693469]
[1749618459813,18.79181043,164.56,164.5,2.49693469]
[1749618460315,0.14216157,164.53,164.5,2.49693469]
[1749618460993,18.79181043,164.53,164.5,2.49693469]
[1749618463026,26.14216157,164.51,164.5,2.49693469]
[1749618464694,0.14216157,164.51,164.5,2.49693469]
[1749618466199,0.14216157,164.51,164.5,7.01595726]
[1749618466412,0.14216157,164.51,164.5,2.49693469]
[1749618467105,0.14216157,164.54,164.5,2.49693469]
[1749618468703,11.4709,164.57,164.5,28.49693469]
[1749618469115,0.14216157,164.56,164.5,28.49693469]
[1749618469427,0.14216157,164.56,164.51,4.51789076]
[1749618469628,0.14216157,164.56,164.5,28.49693469]
[1749618470818,0.14216157,164.56,164.5,27.49693469]
[1749618471216,0.14216157,164.56,164.51,4.51789614]
[1749618471422,0.14216157,164.56,164.5,27.49693469]
[1749618471624,0.14216157,164.56,164.51,4.5178886]
[1749618471817,0.14216157,164.56,164.5,27.49693469]
[1749618472329,0.14216157,164.56,164.5,1.49693469]
[1749618472808,0.14216157,164.56,164.51,4.51876474]
[1749618473011,0.14216157,164.56,164.5,1.49693469]
[1749618473206,0.14216157,164.56,164.51,4.51854058]
[1749618473414,0.14216157,164.56,164.5,1.49693469]
[1749618473923,0.14216157,164.56,164.51,4.51869782]
[1749618474130,0.14216157,164.56,164.5,1.49693469]
[1749618474434,0.14216157,164.56,164.51,4.51868418]
[1749618474627,0.14216157,164.56,164.5,1.49693469]
[1749618474821,0.14216157,164.56,164.51,4.51869173]
[1749618475036,0.14216157,164.56,164.5,1.49693469]
[1749618475258,0.14216157,164.56,164.51,4.51869252]
[1749618475418,0.14216157,164.56,164.5,1.49693469]
[1749618475618,18.79181043,164.56,164.5,1.49693469]
[1749618476151,18.79181043,164.56,164.51,4.52816645]
[1749618476434,18.79181043,164.56,164.5,1.49693469]
[1749618476648,18.79181043,164.56,164.51,4.52815889]
[1749618476829,26.14216157,164.53,164.5,1.49693469]
[1749618477037,0.14216157,164.52,164.51,4.52818207]
[1749618477348,0.14216157,164.52,164.51,4.52818964]
[1749618478135,0.14216157,164.52,164.5,1.49693469]
[1749618478553,0.14216157,164.52,164.51,4.52819024]
[1749618478853,0.14216157,164.52,164.51,4.5281972]
[1749618479051,0.14216157,164.55,164.5,1.49693469]
[1749618479344,0.14216157,164.55,164.51,4.52838545]
[1749618479535,0.14216157,164.55,164.5,1.49693469]
[1749618479739,0.14216157,164.55,164.51,4.52826276]
[1749618479935,0.14216157,164.55,164.5,1.49693469]
[1749618480122,0.14216157,164.55,164.51,4.52839381]
[1749618480322,0.14216157,164.55,164.5,1.49693469]
[1749618480741,0.14216157,164.55,164.51,4.52839381]
[1749618480941,0.14216157,164.51,164.5,1.49693469]
[1749618488536,26.0,164.53,164.5,1.49693469]
[1749618488943,0.14216157,164.52,164.5,1.49693469]
[1749618489548,0.14216157,164.52,164.51,4.52839429]
[1749618489754,26.0,164.53,164.5,1.49693469]
[1749618490046,0.14216157,164.52,164.5,1.49693469]
[1749618499045,0.14216157,164.52,164.51,4.55464398]
[1749618499236,0.14216157,164.52,164.5,1.49693469]
[1749618499439,0.14216157,164.52,164.51,4.5547883]
[1749618499638,0.14216157,164.52,164.5,1.49693469]
[1749618499838,0.14216157,164.52,164.51,4.5547813]
[1749618500270,0.14216157,164.52,164.5,1.49693469]
[1749618500940,0.14216157,164.52,164.51,4.5546647]
[1749618501141,18.79181043,164.52,164.5,1.49693469]
[1749618501953,18.79181043,164.52,164.51,4.5550525]
[1749618502271,18.79181043,164.52,164.5,1.49693469]
[1749618510465,25.0,164.51,164.5,1.49693469]
[1749618510668,26.93661043,164.51,164.5,1.35483469]
[1749618510867,51.93661043,164.51,164.5,1.35483469]
[1749618511460,43.79181043,164.51,164.5,1.35483469]
[1749618516488,69.79181043,164.51,164.5,1.35483469]
[1749618516680,44.79181043,164.51,164.5,1.35483469]
[1749618517679,26.14216157,164.51,164.5,1.35483469]
[1749618517896,5.44,164.53,164.5,1.35483469]
[1749618518194,0.14216157,164.52,164.5,1.35483469]
[1749618518566,5.44,164.53,164.5,1.35483469]
[1749618518873,0.14216157,164.52,164.5,1.35483469]
[1749618520167,5.44,164.53,164.5,1.35483469]
[1749618520367,0.14216157,164.52,164.5,1.35483469]
[1749618525172,18.79181043,164.52,164.5,1.35483469]
[1749618528272,43.73181043,164.52,164.5,1.35483469]
[1749618544096,61.94181043,164.52,164.5,1.35483469]
[1749618544320,71.94181043,164.52,164.5,1.35483469]
[1749618546226,26.0,164.43,164.38,1.5818]
[1749618546413,0.14216157,164.42,164.39,2.04956801]
[1749618546606,0.14216157,164.42,164.4,2.04956801]
[1749618546816,0.14216157,164.42,164.38,1.5818]
[1749618547010,0.14216157,164.42,164.39,2.04406347]
[1749618547199,0.14216157,164.42,164.38,1.5818]
[1749618547400,0.14216157,164.42,164.39,2.04409329]
[1749618547613,0.14216157,164.42,164.38,1.5818]
[1749618547818,0.14216157,164.42,164.39,2.04408975]
[1749618548020,0.14216157,164.42,164.38,1.5818]
[1749618549251,31.36,164.43,164.38,1.5818]
[1749618549450,31.36,164.43,164.39,2.04526827]
[1749618549753,31.36,164.43,164.38,1.5818]
[1749618549934,31.36,164.43,164.39,2.04526798]
[1749618550121,31.36,164.43,164.38,1.5818]
[1749618550445,31.36,164.43,164.39,2.05815771]
[1749618550621,31.36,164.43,164.38,1.5818]
[1749618550822,31.36,164.43,164.39,2.05639746]
[1749618551023,31.36,164.43,164.38,1.5818]
[1749618551243,31.36,164.43,164.39,2.05640665]
[1749618551425,31.36,164.43,164.38,1.5818]
[1749618551620,31.36,164.43,164.39,2.05637453]
[1749618551820,31.36,164.43,164.38,1.5818]
[1749618552044,31.36,164.43,164.39,2.05636491]
[1749618552245,31.36,164.43,164.38,1.5818]
[1749618552426,31.36,164.43,164.39,2.05574246]
[1749618552621,31.36,164.43,164.38,1.5818]
[1749618552839,31.36,164.43,164.39,2.05574246]
[1749618553146,31.36,164.43,164.38,1.5818]
[1749618553340,31.36,164.43,164.39,2.05573284]
[1749618553538,31.36,164.43,164.38,1.5818]
[1749618553749,31.36,164.43,164.39,2.05573284]
[1749618553933,31.36,164.43,164.38,1.5818]
[1749618554248,31.36,164.43,164.39,2.04658559]
[1749618554559,31.36,164.43,164.38,1.5818]
[1749618554738,31.36,164.43,164.39,2.04641449]
[1749618554929,31.36,164.43,164.38,1.5818]
[1749618555133,31.36,164.43,164.39,2.04641477]
[1749618555452,31.36,164.43,164.38,1.5818]
[1749618555652,5.36,164.43,164.39,2.04642057]
[1749618555818,5.36,164.43,164.38,1.5818]
[1749618555819,5.36,164.43,164.4,2.04617402]
[1749618556023,5.36,164.43,164.41,2.04617402]
[1749618556248,5.36,164.43,164.38,1.5818]
[1749618556448,5.36,164.43,164.39,2.04607626]
[1749618556632,5.36,164.43,164.38,1.5818]
[1749618556836,5.36,164.43,164.39,2.04604748]
[1749618557223,5.36,164.43,164.38,1.5818]
[1749618557427,5.36,164.43,164.39,2.04604796]
[1749618557643,5.36,164.43,164.4,2.04604796]
[1749618557838,5.36,164.43,164.41,2.04604386]
[1749618558049,5.36,164.43,164.42,2.04604386]
[1749618558757,5.36,164.43,164.39,10.35148936]
[1749618559058,5.36,164.43,164.42,26.0]
[1749618559652,5.36,164.43,164.39,44.64964886]
[1749618559848,5.36,164.43,164.39,26.0]
[1749618560237,5.36,164.43,164.38,91.4818]
[1749618560438,5.36,164.43,164.38,1.5818]
[1749618564135,5.36,164.43,164.39,2.04673953]
[1749618564335,5.36,164.43,164.4,2.04673953]
[1749618564533,5.36,164.43,164.38,1.5818]
[1749618564737,5.36,164.43,164.39,2.04723796]
[1749618565050,5.36,164.43,164.38,1.5818]
[1749618565245,5.36,164.43,164.39,2.04738628]
[1749618565452,0.14216157,164.42,164.38,1.5818]
[1749618565757,0.14216157,164.42,164.39,2.04975294]
[1749618565934,0.14216157,164.42,164.33,39.49792218]
[1749618566136,0.14216157,164.42,164.34,2.04975434]
[1749618566336,0.14216157,164.42,164.33,39.49792218]
[1749618566837,0.14216157,164.42,164.34,2.04978247]
[1749618567036,0.14216157,164.42,164.35,2.04978247]
[1749618567232,0.14216157,164.42,164.36,2.04978247]
[1749618567444,0.14216157,164.42,164.37,2.04978247]
[1749618567755,0.14216157,164.42,164.38,2.04978247]
[1749618568053,0.14216157,164.42,164.39,2.0524273]
[1749618568359,0.14216157,164.42,164.33,39.49792218]
[1749618568853,0.14216157,164.42,164.34,2.05242872]
[1749618569053,0.14216157,164.42,164.35,2.05242872]
[1749618569248,0.14216157,164.42,164.36,2.05242872]
[1749618569448,0.14216157,164.42,164.37,2.05242872]
[1749618569749,5.36,164.43,164.38,2.05242872]
[1749618569950,5.36,164.43,164.39,2.05799098]
[1749618570145,5.36,164.43,164.4,2.05799098]
[1749618570448,0.14216157,164.42,164.34,5.65992218]
[1749618570842,0.14216157,164.42,164.35,2.05807928]
[1749618571043,5.36,164.43,164.36,2.05807928]
[1749618571230,5.36,164.43,164.37,2.05807928]
[1749618571434,5.36,164.43,164.38,2.05807928]
[1749618571736,5.36,164.43,164.39,2.05850849]
[1749618572051,5.36,164.43,164.4,2.05850465]
[1749618572248,5.36,164.43,164.35,29.00113822]
[1749618572550,5.36,164.43,164.36,2.05850437]
[1749618572732,5.36,164.43,164.37,2.05850437]
[1749618572933,5.36,164.43,164.38,2.05850437]
[1749618573134,5.36,164.43,164.39,2.05850437]
[1749618573329,5.36,164.43,164.35,34.6610604]
[1749618573548,5.36,164.43,164.36,2.05801151]
[1749618573751,5.36,164.43,164.35,34.6610604]
[1749618573940,5.36,164.43,164.36,2.05801091]
[1749618574140,5.36,164.43,164.37,2.05801063]
[1749618574337,5.36,164.43,164.35,34.6610604]
[1749618574544,5.36,164.43,164.36,2.05801035]
[1749618574753,5.36,164.43,164.35,34.6610604]
[1749618574754,5.36,164.43,164.37,2.06088617]
[1749618574938,5.36,164.43,164.38,2.06088617]
[1749618575134,5.36,164.43,164.39,2.0608856]
[1749618575334,5.36,164.43,164.4,2.0608856]
[1749618575543,5.36,164.43,164.35,34.6610604]
[1749618575945,5.36,164.43,164.36,2.06088645]
[1749618576157,5.36,164.43,164.37,2.06088617]
[1749618576360,5.36,164.43,164.38,2.06088617]
[1749618576559,5.36,164.43,164.39,2.06088617]
[1749618576763,5.36,164.43,164.4,2.06088617]
[1749618576957,5.36,164.43,164.35,34.6610604]
[1749618577264,5.36,164.43,164.36,2.06013943]
[1749618577466,5.36,164.43,164.37,2.06013915]
[1749618577657,5.36,164.43,164.35,34.6610604]
[1749618577658,5.36,164.43,164.38,2.06013915]
[1749618577858,5.36,164.43,164.39,2.06012888]
[1749618578165,5.36,164.43,164.35,24.30957104]
[1749618578464,5.36,164.43,164.36,2.06012973]
[1749618578663,5.36,164.43,164.37,2.06012973]
[1749618578957,5.36,164.43,164.38,2.06012917]
[1749618579170,5.36,164.43,164.39,2.06012888]
[1749618579358,5.36,164.43,164.4,2.0601286]
[1749618579554,5.36,164.43,164.35,5.65992218]
[1749618579755,5.36,164.43,164.36,2.0580635]
[1749618580057,5.36,164.43,164.37,2.05806321]
[1749618580263,5.36,164.43,164.38,2.05806293]
[1749618580472,5.36,164.43,164.39,2.05806265]
[1749618580473,26.0,164.4,164.39,2.05806265]
[1749618580665,26.0,164.4,164.31,7.54656291]
[1749618580666,0.14216157,164.42,164.34,1.5166]
[1749618580964,0.14216157,164.42,164.35,2.05834371]
[1749618581268,0.14216157,164.42,164.36,2.05834371]
[1749618581448,0.14216157,164.42,164.37,2.05834371]
[1749618581650,0.14216157,164.42,164.38,2.05769597]
[1749618581953,0.14216157,164.42,164.34,1.5166]
[1749618582146,0.14216157,164.42,164.34,7.17652218]
[1749618582347,0.14216157,164.42,164.34,7.1936308]
[1749618582747,0.14216157,164.42,164.35,2.05808649]
[1749618583058,0.14216157,164.42,164.36,2.05808649]
[1749618583265,0.14216157,164.42,164.37,2.05754012]
[1749618583568,0.14216157,164.42,164.34,7.1936308]
[1749618583751,0.14216157,164.42,164.35,2.05752915]
[1749618584065,31.36,164.43,164.36,2.05752887]
[1749618584276,0.14216157,164.42,164.37,2.05752887]
[1749618584473,0.14216157,164.42,164.38,2.05752887]
[1749618584668,0.14216157,164.42,164.34,1.5166]
[1749618584972,18.79181043,164.42,164.35,2.06031977]
[1749618585172,18.79181043,164.42,164.36,2.06031977]
[1749618585473,18.79181043,164.42,164.37,2.0604825]
[1749618585656,18.79181043,164.42,164.31,31.6770308]
[1749618585860,18.79181043,164.42,164.32,2.06053441]
[1749618586063,18.79181043,164.42,164.33,2.06053411]
[1749618586266,18.79181043,164.42,164.34,2.06053411]
[1749618586457,18.79181043,164.42,164.35,2.06053411]
[1749618586771,18.79181043,164.42,164.36,2.06082761]
[1749618586974,18.79181043,164.42,164.37,2.06073999]
[1749618587173,18.79181043,164.42,164.32,5.6770308]
[1749618587368,18.79181043,164.42,164.33,2.06074331]
[1749618587574,18.79181043,164.42,164.34,2.06074331]
[1749618587781,18.79181043,164.42,164.32,5.6770308]
[1749618587782,18.79181043,164.42,164.35,2.06074331]
[1749618587953,18.79181043,164.42,164.36,2.06074331]
[1749618588158,18.79181043,164.42,164.37,2.06074331]
[1749618588376,18.79181043,164.42,164.32,5.6770308]
[1749618588678,18.79181043,164.42,164.33,2.05972905]
[1749618588876,18.79181043,164.42,164.34,2.05973231]
[1749618589177,18.79181043,164.42,164.33,5.6770308]
[1749618589178,26.0,164.4,164.33,5.6770308]
[1749618589479,26.0,164.4,164.34,2.05964023]
[1749618589678,26.0,164.41,164.35,2.05964023]
[1749618589886,0.14216157,164.4,164.36,2.05964023]
[1749618590080,0.14216157,164.4,164.37,2.05964023]
[1749618590258,5.36,164.43,164.38,2.06349006]
[1749618590456,5.36,164.43,164.39,2.06349006]
[1749618590659,31.36,164.43,164.35,1.5539]
[1749618590859,31.36,164.43,164.36,2.06342317]
[1749618591060,5.36,164.43,164.36,5.6770308]
[1749618591277,0.14216157,164.45,164.37,2.06321254]
[1749618591456,5.4,164.43,164.38,2.06321254]
[1749618591660,5.4,164.43,164.39,2.06321254]
[1749618591855,5.4,164.43,164.36,5.6770308]
[1749618592380,5.4,164.43,164.37,2.06365007]
[1749618592578,5.4,164.43,164.36,5.6770308]
[1749618592986,5.4,164.43,164.37,7.74068087]
[1749618593166,5.4,164.43,164.38,2.06365007]
[1749618593367,5.4,164.43,164.39,2.06365007]
[1749618593577,26.0,164.41,164.4,2.06375551]
[1749618593771,26.0,164.41,164.4,2.06375536]
[1749618594169,26.0,164.41,164.4,2.06385395]
[1749618594373,26.0,164.41,164.4,2.06391986]
[1749618594885,26.0,164.41,164.4,2.0639903]
[1749618595460,26.0,164.41,164.4,2.05518404]
[1749618595658,26.0,164.41,164.4,2.05517434]
[1749618596984,5.4,164.43,164.36,5.6770308]
[1749618597373,5.4,164.43,164.37,2.05487768]
[1749618597578,5.4,164.43,164.38,2.0548774]
[1749618597778,5.4,164.43,164.39,2.05487711]
[1749618598002,5.4,164.43,164.4,2.05487683]
[1749618598174,5.4,164.43,164.36,5.6770308]
[1749618598378,5.4,164.43,164.37,2.05487655]
[1749618598595,5.4,164.43,164.38,2.05487655]
[1749618598887,5.4,164.43,164.39,2.05487711]
[1749618599069,5.4,164.43,164.4,2.05487711]
[1749618599273,5.4,164.43,164.36,5.6770308]
[1749618599776,5.4,164.43,164.37,2.05534059]
[1749618599977,5.4,164.43,164.38,2.05534059]
[1749618600192,5.4,164.43,164.39,2.05534059]
[1749618600369,5.4,164.43,164.36,5.6770308]
[1749618600569,5.4,164.43,164.37,2.0556483]
[1749618600781,5.4,164.43,164.36,5.6770308]
[1749618600988,5.4,164.43,164.37,2.05563384]
[1749618601189,5.4,164.43,164.38,2.05549224]
[1749618601392,5.4,164.43,164.39,2.05549196]
[1749618601691,5.4,164.43,164.4,2.05549196]
[1749618601889,5.4,164.43,164.41,2.05549196]
[1749618602074,5.4,164.43,164.36,5.6770308]
[1749618602271,5.4,164.43,164.37,2.05573339]
[1749618602584,5.4,164.43,164.38,2.05573311]
[1749618602792,5.4,164.43,164.36,5.6770308]
[1749618603173,5.4,164.43,164.37,2.05616378]
[1749618603372,5.4,164.43,164.38,2.05616378]
[1749618603572,5.4,164.43,164.39,2.05616378]